[Event "1st Serbian League 2022"]
[Site "Vrnjacka Banja"]
[Date "2022.09.25"]
[Round "6.5"]
[White "Mijailovic, Zoran"]
[Black "Radojicic, Aleksandar M"]
[Result "1-0"]
[ECO "A43"]
[WhiteElo "2345"]
[BlackElo "2192"]
[Annotator "TA"]
[PlyCount "73"]
[EventDate "2022.09.20"]
[EventType "team-tourn"]
[EventCountry "SRB"]
[SourceTitle "playchess.com"]
[Source "ChessBase"]
[SourceQuality "1"]
[TimeControl "40/5400+30:1800+30"]

{[%evp 9,73,23,45,29,45,48,46,51,45,45,48,43,45,33,46,38,37,13,10,12,16,11,68,68,62,68,83,38,54,51,88,66,79,57,112,106,85,102,208,209,252,184,211,232,250,31,29,0,54,70,154,81,88,87,110,99,98,124,105,143,29990,29987,29991,29992,29996,29987]} 1. d4 {[%emt 0:02:16]} Nf6 {[%emt 0:01:23]} 2. Nf3 {[%emt 0:00:06]} c5 {[%emt 0:01:20]} 3. d5 {[%emt 0:00:43]} b5 {[%emt 0:00:24]} 4. e4 {[%emt 0:00:10]} Bb7 {[%emt 0:23:09]} 5. a4 {[%emt 0:15:07]} Nxe4 {[%emt 0:15:07]} 6. axb5 {[%emt 0:06:10] A43: Schmid Benoni.} d6 {[%emt 0:12:51]} 7. c4 {[%emt 0:07:16]} g6 {[%emt 0:01:45]} 8. Bd3 {[%emt 0:00:35] White is slightly better.} Nf6 {[%emt 0:00:21]} 9. O-O {[%emt 0:00:55]} Bg7 {[%emt 0:00:41]} 10. Nc3 {[%emt 0:00:43]} O-O {[%emt 0:01:35]} 11. Re1 {[%emt 0:02:04]} Re8 {[%emt 0:08:36]} 12. Bg5 {[%emt 0:04:25]} a6 {[%emt 0:04:42] [#]} 13. Qd2 $146 {[%emt 0:06:28]} ({Predecessor:} 13. h3 Qd7 {½-½ (13) Horvath,J (2106)-Kovacs,A (2215) Hungary 2019}) 13... axb5 {[%emt 0:02:55]} 14. Rxa8 {[%emt 0:02:17]} ({Reject} 14. cxb5 Nbd7 $15) 14... Bxa8 {[%emt 0:00:02]} 15. Nxb5 {[%emt 0:00:16]} Na6 {[%emt 0:02:00]} ({Black should play} 15... Bb7 $11) 16. Bc2 $1 $14 {[%emt 0:00:57] White has more active pieces.} Qd7 {[%emt 0:17:15][%cal Of6d5]} 17. Ba4 {[%emt 0:03:50]} Rb8 {[%emt 0:00:17]} 18. b3 {[%emt 0:00:41]} Qd8 {[%emt 0:01:22]} 19. Qe2 {[%emt 0:08:48]} Rb7 {[%emt 0:01:28]} 20. Nd2 {[%emt 0:00:37]} h6 {[%emt 0:00:41]} 21. Bh4 {[%emt 0:00:31]} Nb4 {[%emt 0:01:27]} (21... Bf8 $14) 22. Ne4 $1 $16 {[%emt 0:01:01]} Nxe4 {[%emt 0:01:16]} 23. Qxe4 {[%emt 0:00:04][%cal Rh4e7]} g5 {[%emt 0:00:38]} (23... Bf8 $16 {is a better defense.}) 24. Bg3 $18 {[%emt 0:00:21]} Bf6 {[%emt 0:00:37]} 25. h4 {[%emt 0:07:43]} Kg7 {[%emt 0:00:32]} 26. hxg5 {[%emt 0:00:19]} hxg5 {[%emt 0:00:08]} 27. Qf5 $2 {[%emt 0:01:10]} (27. f4 $1 $18 {[%cal Rf4g5]}) 27... Rb8 $1 $14 {[%emt 0:00:50]} 28. Re2 {[%emt 0:04:16][%cal Ob5c3]} Qc8 {[%emt 0:00:22]} (28... Bb7 $1 $11) 29. Qf3 {[%emt 0:00:18][%cal Og3d6] aiming for Bxd6!} Qh8 {[%emt 0:00:30] [#]} ({Better is} 29... Qd8 $1 $14) 30. Nxd6 $1 {[%emt 0:04:17][%mdl 512]} exd6 $16 {[%emt 0:00:12]} 31. Bxd6 {[%emt 0:00:08]} Rd8 {[%emt 0:00:54] [#]} 32. Be7 {[%emt 0:06:32]} ({But not} 32. Bxc5 $6 Nxd5 33. cxd5 Rxd5 $11) 32... Bxe7 {[%emt 0:00:22]} 33. Rxe7 {[%emt 0:00:03] Really sharp!} Rf8 {[%emt 0:00:01]} 34. Be8 $1 $40 {[%emt 0:02:30][%cal Re7f7,Ba4e8,Be8f7,Bf7h5][%mdl 160] White wants a kill.} Kh6 $2 {[%emt 0:01:15][%mdl 8192]} (34... Qh6 $16) 35. Bxf7 {[%emt 0:14:23] White mates.} Qa1+ {[%emt 0:00:27]} 36. Kh2 {[%emt 0:00:00]} Rh8 {[%emt 0:00:31]} 37. Bh5 {[%emt 0:00:00] Weighted Error Value: White=0.22 (precise) /Black=0.32} 1-0

[Event "1st Serbian League 2022"]
[Site "Vrnjacka Banja"]
[Date "2022.09.25"]
[Round "6.6"]
[White "Velikic, Adela"]
[Black "Todorovic, Jovan"]
[Result "1-0"]
[ECO "E73"]
[WhiteElo "2272"]
[BlackElo "2350"]
[Annotator "TA"]
[PlyCount "105"]
[EventDate "2022.09.20"]
[EventType "team-tourn"]
[EventCountry "SRB"]
[SourceTitle "playchess.com"]
[Source "ChessBase"]
[SourceQuality "1"]
[TimeControl "40/5400+30:1800+30"]

{[%evp 14,105,44,30,33,27,63,57,57,62,74,77,81,76,106,106,119,96,137,108,108,114,106,81,157,95,107,0,0,0,0,0,0,0,0,0,129,132,172,159,176,169,162,131,185,185,186,195,187,161,2362,257,225,156,204,202,227,174,167,125,123,90,378,362,431,447,449,421,447,441,627,585,753,747,702,633,29968,29968,29966,29968,29977,29978,29977,29973,29973,29974,29972,29971,29981,29982,29982,29982,29981,29979]} 1. d4 {[%emt 0:00:04]} Nf6 {[%emt 0:05:49]} 2. c4 {[%emt 0:00:14]} g6 {[%emt 0:01:01]} 3. Nc3 {[%emt 0:00:13]} Bg7 {[%emt 0:00:12]} 4. e4 {[%emt 0:00:11]} d6 {[%emt 0:00:37]} 5. Be2 {[%emt 0:00:27]} O-O {[%emt 0:01:54]} 6. Be3 {[%emt 0:00:24]} e5 {[%emt 0:03:53]} 7. d5 {[%emt 0:00:19]} Na6 {[%emt 0:01:19]} 8. h4 {[%emt 0:03:29]} Nc5 {[%emt 0:02:46] E73: King's Indian: Averbakh Variation without 6...c5.} 9. Qc2 {[%emt 0:00:21]} h5 {[%emt 0:04:18]} 10. f3 {[%emt 0:11:58]} a5 {[%emt 0:04:38] White is slightly better.} 11. O-O-O {[%emt 0:12:39]} Bd7 {[%emt 0:06:04]} 12. Nh3 {[%emt 0:02:05]} a4 {[%emt 0:12:28] [#]} 13. Nf2 $146 {[%emt 0:05:08]} ({Predecessor:} 13. Rdg1 c6 14. g4 cxd5 15. exd5 e4 16. Bg5 exf3 17. Bxf3 b5 18. cxb5 Re8 19. Nf4 {1-0 (34) Froewis,G (2449)-Bisby,D (2311) Vienna 2016}) 13... a3 {[%emt 0:13:53]} 14. b3 {[%emt 0:07:26]} Qb8 {[%emt 0:01:05]} 15. g4 {[%emt 0:05:08]} Rc8 {[%emt 0:02:25]} 16. Rhg1 {[%emt 0:12:08]} c6 {[%emt 0:09:49]} 17. dxc6 {[%emt 0:14:50]} Bxc6 {[%emt 0:01:14]} 18. Qd2 {[%emt 0:03:42]} hxg4 {[%emt 0:02:33]} ({Black should try} 18... Ne6) 19. Nxg4 {[%emt 0:02:42]} (19. Bxc5 $142 dxc5 20. fxg4) 19... Nh5 $16 {[%emt 0:04:45]} 20. Qxd6 {[%emt 0:08:32]} (20. Bh6 $16 {Threatens to win with Bxg7.} Bh8 21. Ne3 (21. Qxd6 Nxb3+ 22. axb3 a2 $11)) 20... Nxb3+ $1 $11 {[%emt 0:01:29]} 21. axb3 {[%emt 0:05:49]} a2 {[%emt 0:00:29]} 22. Nxa2 {[%emt 0:00:55]} Qxd6 {[%emt 0:07:29]} 23. Rxd6 {[%emt 0:00:04]} Rxa2 {[%emt 0:00:15]} 24. Rd2 {[%emt 0:00:44]} Ra3 {[%emt 0:02:28]} (24... Ra1+ $11 25. Kb2 Rxg1 26. Bxg1 f5) 25. Kb2 $36 {[%emt 0:01:15][%mdl 2048] Black is under strong pressure. White is more active.} Rca8 {[%emt 0:00:46] [#]} 26. Nh6+ $1 {[%emt 0:01:07]} Bxh6 {[%emt 0:03:20]} 27. Bxh6 {[%emt 0:00:03]} Kh7 {[%emt 0:02:18]} 28. Be3 {[%emt 0:00:07]} Nf4 {[%emt 0:00:32]} (28... Ng7 $16 {is a better defense.} 29. Kc3 Ra2) 29. Bxf4 $18 {[%emt 0:00:40]} exf4 {[%emt 0:00:06]} 30. Kc3 {[%emt 0:00:31]} Ra2 {[%emt 0:04:43]} 31. Rxa2 {[%emt 0:00:50]} Ra6 {[%emt 0:01:22]} (31... Rxa2 32. Bd3 Rf2) 32. Ra3 $2 Rxa3 {[%emt 0:00:00][%mdl 4096] Endgame KRB-KRB} 33. Bd1 {[%emt 0:00:58]} Ra1 {[%emt 0:00:27]} (33... f6 $16 34. Kb2 Ra8) 34. Kb2 {[%emt 0:00:23]} Ra5 {[%emt 0:00:18]} 35. Rg4 {[%emt 0:00:54]} Bd7 {[%emt 0:00:24]} 36. Rxf4 {[%emt 0:01:28]} Kg7 {[%emt 0:00:24]} 37. b4 {[%emt 0:00:25][%cal Bb3b4,Bb4b5][%mdl 32]} Rh5 {[%emt 0:00:19][%mdl 8192] This move loses the game for Black.} (37... Re5 $16) 38. c5 {[%emt 0:00:43]} f6 {[%emt 0:00:12]} 39. Bb3 {[%emt 0:00:23]} Re5 {[%emt 0:01:21]} 40. Kc3 {[%emt 0:00:16]} Bc8 {[%emt 0:00:33]} 41. Bd5 {[%emt 0:30:49]} Re7 {[%emt 0:30:24]} (41... f5 $142 42. Kd4 Kf6) 42. b5 {[%emt 0:00:00]} g5 {[%emt 0:00:00]} 43. hxg5 {[%emt 0:00:00]} fxg5 {[%emt 0:00:00] [#]} 44. Rg4 $1 {[%emt 0:00:00]} Bxg4 {[%emt 0:00:00]} (44... Kf6 45. Rg1) 45. fxg4 {[%emt 0:00:00] KR-KB. White mates.} Kf6 {[%emt 0:00:00]} 46. Kd4 {[%emt 0:00:00]} Rd7 {[%emt 0:00:00]} 47. e5+ {[%emt 0:00:00][%cal Be4e5,Be5e6][%mdl 32]} Ke7 {[%emt 0:00:00]} 48. e6 {[%emt 0:00:00]} Rd8 {[%emt 0:00:00]} 49. b6 {[%emt 0:00:52]} Rb8 {[%emt 0:00:00]} 50. Kc4 {[%emt 0:00:39]} Rf8 {[%emt 0:02:15]} 51. Bxb7 {[%emt 0:02:03]} Rf4+ {[%emt 0:00:59]} 52. Kd5 {[%emt 0:00:31]} Rxg4 {[%emt 0:02:15]} 53. c6 {[%emt 0:00:23] Weighted Error Value: White=0.26 (precise) /Black=0.43} 1-0

[Event "1st Serbian League 2022"]
[Site "Vrnjacka Banja"]
[Date "2022.09.25"]
[Round "6.7"]
[White "Indjic, Aleksandar"]
[Black "Tadic, Stefan"]
[Result "1-0"]
[ECO "D17"]
[WhiteElo "2628"]
[BlackElo "2318"]
[Annotator "TA"]
[PlyCount "165"]
[EventDate "2022.09.20"]
[EventType "team-tourn"]
[EventCountry "SRB"]
[SourceTitle "playchess.com"]
[Source "ChessBase"]
[SourceQuality "1"]
[TimeControl "40/5400+30:1800+30"]

{[%evp 15,165,0,29,29,27,20,39,44,37,37,31,41,35,40,27,0,22,14,25,0,0,0,0,-2,9,14,12,11,16,10,13,10,11,0,6,0,7,0,16,0,0,-27,-27,-89,0,0,0,0,0,0,0,-5,0,-7,0,0,0,0,26,3,3,3,4,4,6,0,0,0,0,0,0,0,0,0,0,0,0,0,0,0,0,0,0,0,0,0,0,0,0,0,0,0,0,0,0,0,0,0,0,0,0,0,4,11,14,18,54,54,84,88,89,89,108,87,89,82,96,37,97,54,65,67,118,118,118,102,116,110,202,202,210,210,297,285,290,267,275,217,274,268,318,311,360,322,378,379,346,342,744,722,582,539]} 1. d4 {[%emt 0:01:04]} d5 {[%emt 0:00:36]} 2. Nf3 {[%emt 0:00:12]} Nf6 {[%emt 0:00:28]} 3. c4 {[%emt 0:00:32]} c6 {[%emt 0:00:39]} 4. Nc3 {[%emt 0:01:29]} dxc4 {[%emt 0:00:32]} 5. a4 {[%emt 0:01:07]} Bf5 {[%emt 0:00:11]} 6. Ne5 {[%emt 0:00:22]} e6 {[%emt 0:01:35]} 7. f3 {[%emt 0:00:43]} Bb4 {[%emt 0:00:58]} 8. Nxc4 $1 {[%emt 0:00:30][%mdl 4] is now more promising than 8.e4.} O-O {[%emt 0:01:48]} 9. Kf2 {[%emt 0:01:04] D17: Slav Defence: 5 a4 Bf5: Lines with 6 Nh4 and 6 Ne5.} ({Of course not} 9. e4 Nxe4 $1 {[%mdl 512]} 10. fxe4 Qh4+ 11. Kd2 Qxe4 $15) 9... h6 {[%emt 0:00:11]} 10. e4 {[%emt 0:00:57]} Bh7 {[%emt 0:00:37]} 11. Be3 {[%emt 0:01:50] [#] White is slightly better.} Nfd7 $146 {[%emt 0:00:25]} ({Predecessor:} 11... a5 12. Be2 Ne8 13. Qb3 f5 14. exf5 Bxf5 15. Rhd1 Nf6 16. Kg1 Nd5 17. Bf2 Nd7 {1-0 (46) Yu,Y (2708)-Solak,D (2594) Ankara 2022}) 12. Qb3 {[%emt 0:03:22]} a5 {[%emt 0:05:51]} 13. Na2 {[%emt 0:04:37]} Na6 {[%emt 0:08:40]} 14. Nxb4 {[%emt 0:00:37]} Nxb4 {[%emt 0:03:28]} 15. Ne5 {[%emt 0:05:02]} Qe7 {[%emt 0:18:05]} 16. Bc4 {[%emt 0:03:40]} Nb6 {[%emt 0:03:14]} 17. Rhe1 {[%emt 0:27:41]} Nxc4 {[%emt 0:03:36]} 18. Qxc4 {[%emt 0:00:31]} f6 {[%emt 0:13:38]} 19. Nd3 {[%emt 0:00:22]} Nxd3+ {[%emt 0:00:05]} 20. Qxd3 {[%emt 0:00:05]} f5 {[%emt 0:00:08]} 21. exf5 {[%emt 0:00:04]} Rxf5 {[%emt 0:00:06]} 22. Qb3 {[%emt 0:00:31]} Rd5 {[%emt 0:06:08]} 23. Kg1 {[%emt 0:00:18]} Qb4 {[%emt 0:01:41]} 24. Qa2 {[%emt 0:04:50]} Bc2 {[%emt 0:09:52]} 25. Bf2 {[%emt 0:00:10]} Bb3 {[%emt 0:00:11]} 26. Qb1 {[%emt 0:00:06]} Rf5 {[%emt 0:00:06]} 27. Re4 {[%emt 0:07:47][%cal Od4d5]} Bd5 {[%emt 0:04:24]} 28. Rg4 {[%emt 0:00:13]} h5 {[%emt 0:01:43]} 29. Rg3 {[%emt 0:05:52] [#]} (29. Rh4 $1 $11 {keeps the balance.}) 29... Qd2 {[%emt 0:00:11]} (29... h4 $1 $17 {[%cal Rh4g3]} 30. Rh3 g5) 30. h4 $11 {[%emt 0:00:38]} Ra6 {[%emt 0:00:32]} 31. Qe1 {[%emt 0:00:56]} Qxe1+ {[%emt 0:00:40]} (31... Qxb2 $2 32. Rb1 Rb6 33. Rxb2 $18) 32. Bxe1 {[%emt 0:00:05]} Kf7 {[%emt 0:06:41]} 33. Bd2 {[%emt 0:00:38]} g6 {[%emt 0:00:11]} 34. Rg5 {[%emt 0:29:35]} Ra8 {[%emt 0:01:57]} 35. Kf2 {[%emt 0:00:00]} b6 {[%emt 0:00:25]} 36. Kg3 {[%emt 0:00:00]} Rc8 {[%emt 0:02:19]} 37. Be3 {[%emt 0:00:00]} Ra8 {[%emt 0:00:32]} 38. Rc1 {[%emt 0:00:00]} Ra7 {[%emt 0:00:54]} 39. Bf4 {[%emt 0:00:00]} Rb7 {[%emt 0:00:19]} 40. Be5 {[%emt 0:00:00]} Ra7 {[%emt 0:03:22]} 41. Rxf5+ {[%emt 0:11:01]} exf5 {[%emt 0:30:23][%mdl 4096] Endgame KRB-KRB} 42. Kf4 {[%emt 0:00:15]} Rb7 {[%emt 0:02:28]} 43. Kg5 {[%emt 0:00:53]} b5 {[%emt 0:00:00]} 44. axb5 {[%emt 0:00:00]} Rxb5 {[%emt 0:00:00]} 45. Rc2 {[%emt 0:00:00]} a4 {[%emt 0:00:00]} 46. Bd6 {[%emt 0:00:00]} Rb7 {[%emt 0:00:00]} 47. Ba3 {[%emt 0:00:00]} Rb5 {[%emt 0:00:00]} 48. Re2 {[%emt 0:00:00]} Be6 {[%emt 0:00:00]} 49. Rf2 {[%emt 0:00:00]} Bc4 {[%emt 0:00:00]} 50. Bc5 {[%emt 0:00:00]} Rb3 {[%emt 0:00:00]} 51. Bd6 {[%emt 0:00:00]} Bd5 {[%emt 0:00:00]} 52. Re2 {[%emt 0:00:00] Strongly threatening Re7+.} Be6 {[%emt 0:00:00]} 53. Bc5 {[%emt 0:00:00]} Rd3 {[%emt 0:00:00]} 54. Kf4 {[%emt 0:00:00]} Kf6 {[%emt 0:00:00]} 55. Bb6 {[%emt 0:00:00]} Rb3 {[%emt 0:00:00]} 56. Bd8+ {[%emt 0:00:00]} Kf7 {[%emt 0:00:00]} 57. Kg5 {[%emt 0:00:00]} Rd3 {[%emt 0:00:13]} 58. Bf6 {[%emt 0:00:00]} Rb3 {[%emt 0:00:05]} 59. d5 {[%emt 0:04:27]} cxd5 {[%emt 0:00:30]} 60. Rc2 {[%emt 0:00:07] And now Rc7+ would win.} Rb7 {[%emt 0:00:07] Against Rc7+} 61. Rc5 {[%emt 0:00:13]} d4 {[%emt 0:07:28]} 62. Bxd4 {[%emt 0:00:13]} Rd7 {[%emt 0:00:01]} 63. Bc3 {[%emt 0:00:40]} Rd6 {[%emt 0:00:35]} 64. Ra5 {[%emt 0:00:32]} Bd7 {[%emt 0:00:11]} 65. Ra8 {[%emt 0:00:21]} Be8 {[%emt 0:00:06]} 66. Kh6 {[%emt 0:00:37]} ({White should play} 66. Ra7+ $16 Ke6 67. Ra8) 66... Rd5 {[%emt 0:03:25]} (66... Re6 $14) 67. Bb4 {[%emt 0:00:55]} Rd4 {[%emt 0:00:52][%csl LRb4,LRh4]} 68. Ra7+ {[%emt 0:01:10]} Bd7 {[%emt 0:00:01] White stays focused until the end.} (68... Ke6 $14 69. Re7+ Kf6) 69. Bc3 $16 {[%emt 0:00:30]} Rd6 {[%emt 0:00:01]} 70. Kh7 {[%emt 0:01:06] White is more active.} Rd5 {[%emt 0:01:05]} 71. Ra6 {[%emt 0:00:24]} Be6 {[%emt 0:00:00]} (71... Be8 $16) 72. Rxa4 $18 {[%emt 0:00:16]} Rd1 {[%emt 0:00:54]} 73. Ra7+ {[%emt 0:01:30]} Bd7 {[%emt 0:00:11]} (73... Rd7 {is a better defense.} 74. Ra6 Rd5) 74. b4 {[%emt 0:00:42][%cal Bb2b4,Bb4b5,Bb5b6][%mdl 32]} Rd6 {[%emt 0:00:43]} 75. Rb7 {[%emt 0:01:25]} Rd3 {[%emt 0:01:11]} 76. Be1 {[%emt 0:05:33]} Rd1 {[%emt 0:00:06]} 77. Bg3 {[%emt 0:01:29]} Rd2 {[%emt 0:00:01]} 78. Bf4 {[%emt 0:00:53]} Rd4 {[%emt 0:00:15]} 79. b5 {[%emt 0:00:42]} Ke6 {[%emt 0:00:10]} 80. Rb6+ {[%emt 0:01:12]} Kf7 {[%emt 0:00:02]} 81. Bg5 {[%emt 0:00:16] Rf6+ is the strong threat.} Rd5 $2 {[%emt 0:01:39]} (81... Be6 82. Ra6 Rd7) 82. Rf6+ {[%emt 0:00:27]} Ke8 {[%emt 0:00:01]} 83. b6 {[%emt 0:00:11] Weighted Error Value: White=0.05 (flawless) /Black=0.05 (flawless)} 1-0

[Event "1st Serbian League 2022"]
[Site "Vrnjacka Banja"]
[Date "2022.09.25"]
[Round "6.8"]
[White "Ivanovic, Marko"]
[Black "Ivanisevic, Ivan"]
[Result "1/2-1/2"]
[ECO "B48"]
[WhiteElo "2265"]
[BlackElo "2547"]
[Annotator "RC"]
[PlyCount "128"]
[EventDate "2022.09.20"]
[EventType "team-tourn"]
[EventCountry "SRB"]
[SourceTitle "playchess.com"]
[Source "ChessBase"]
[SourceQuality "1"]
[TimeControl "40/5400+30:1800+30"]

1. e4 {[%emt 0:06:45]} c5 {[%emt 0:00:03]} 2. Nf3 {[%emt 0:00:11]} e6 {[%emt 0:00:06]} 3. d4 {[%emt 0:00:06]} cxd4 {[%emt 0:00:07]} 4. Nxd4 {[%emt 0:00:06]} Nc6 {[%emt 0:00:05]} 5. Nc3 {[%emt 0:00:05]} Qc7 {[%emt 0:00:05]} 6. Be3 {[%emt 0:00:05]} a6 {[%emt 0:00:06]} 7. Qd2 {[%emt 0:00:03]} Nf6 {[%emt 0:02:33]} 8. O-O-O {[%emt 0:01:39]} Bb4 {[%emt 0:00:39]} 9. f3 {[%emt 0:00:18]} O-O {[%emt 0:00:08]} 10. g4 {[%emt 0:01:27]} b5 {[%emt 0:00:21]} 11. a3 {[%emt 0:00:52]} Be7 {[%emt 0:00:42]} 12. h4 {[%emt 0:00:22]} b4 {[%emt 0:08:13]} 13. axb4 {[%emt 0:00:55]} Bxb4 {[%emt 0:00:09]} 14. h5 {[%emt 0:00:49]} Nxd4 {[%emt 0:11:04]} 15. Qxd4 {[%emt 0:08:36]} Qa5 {[%emt 0:09:57]} 16. h6 {[%emt 0:13:32]} e5 {[%emt 0:10:19]} 17. Qb6 {[%emt 0:08:33]} Bxc3 {[%emt 0:10:27]} 18. bxc3 {[%emt 0:01:34]} Qxb6 {[%emt 0:03:12]} 19. Bxb6 {[%emt 0:00:06]} g6 {[%emt 0:00:05]} 20. Bc5 {[%emt 0:01:20]} Re8 {[%emt 0:02:09]} 21. Rd6 {[%emt 0:05:23]} Re6 {[%emt 0:00:52]} 22. Bc4 {[%emt 0:00:05]} Rxd6 {[%emt 0:07:51]} 23. Bxd6 {[%emt 0:00:05]} Ne8 {[%emt 0:00:02]} 24. Bxe5 {[%emt 0:00:07]} d6 {[%emt 0:00:18]} 25. Bd4 {[%emt 0:05:57]} Be6 {[%emt 0:00:12]} 26. Bd5 {[%emt 0:02:03]} Bxd5 {[%emt 0:04:50]} 27. exd5 {[%emt 0:00:13]} f6 {[%emt 0:00:12]} 28. f4 {[%emt 0:00:23]} Nc7 {[%emt 0:03:21]} 29. c4 {[%emt 0:01:11]} Re8 {[%emt 0:02:40]} 30. Kd2 {[%emt 0:04:42]} Kf7 {[%emt 0:00:39]} 31. Kd3 {[%emt 0:00:48]} Rb8 {[%emt 0:01:37]} 32. Bc3 {[%emt 0:00:19]} Rb7 {[%emt 0:02:34]} 33. g5 {[%emt 0:00:28]} a5 {[%emt 0:02:57]} 34. Bxa5 {[%emt 0:02:47]} Na6 {[%emt 0:00:05]} 35. gxf6 {[%emt 0:07:20]} Kxf6 {[%emt 0:01:15]} 36. Re1 {[%emt 0:01:50]} Nc5+ {[%emt 0:00:52]} 37. Kd4 {[%emt 0:00:07]} Kf5 {[%emt 0:00:24]} 38. Bd2 {[%emt 0:00:16]} Kg4 {[%emt 0:03:24]} 39. Re8 {[%emt 0:01:23]} Kf3 {[%emt 0:00:11]} 40. Re3+ {[%emt 0:03:09]} Kg4 {[%emt 0:00:14]} 41. Re8 {[%emt 0:47:00]} Kf3 {[%emt 0:32:19]} 42. Re6 {[%emt 0:05:45]} Nxe6+ {[%emt 0:01:25]} 43. dxe6 {[%emt 0:00:03]} Kg4 {[%emt 0:00:05]} 44. Kd5 {[%emt 0:00:02]} Kf5 {[%emt 0:00:07]} 45. Bc3 {[%emt 0:00:02]} Re7 {[%emt 0:00:20]} 46. Kxd6 {[%emt 0:00:06]} Rxe6+ {[%emt 0:00:05]} 47. Kd5 {[%emt 0:00:38]} Re2 {[%emt 0:00:00]} 48. c5 {[%emt 0:00:00]} Rxc2 {[%emt 0:00:00]} 49. Be5 {[%emt 0:00:00]} g5 {[%emt 0:00:00]} 50. fxg5 {[%emt 0:00:00]} Kxg5 {[%emt 0:00:00]} 51. Bg7 {[%emt 0:00:00]} Kg6 {[%emt 0:00:17]} 52. c6 {[%emt 0:00:00]} Kf7 {[%emt 0:00:20]} 53. Kd6 {[%emt 0:00:00]} Rd2+ {[%emt 0:03:01]} 54. Kc7 {[%emt 0:00:00]} Ke6 {[%emt 0:01:41]} 55. Kc8 {[%emt 0:00:00]} Rc2 {[%emt 0:01:23]} 56. c7 {[%emt 0:00:00]} Ke7 {[%emt 0:02:11]} 57. Be5 {[%emt 0:00:00]} Rc6 {[%emt 0:00:16]} 58. Bf4 {[%emt 0:00:00]} Ke8 {[%emt 0:00:07]} 59. Bg5 {[%emt 0:00:00]} Rc4 {[%emt 0:00:24]} 60. Bf6 {[%emt 0:00:00]} Rb4 {[%emt 0:01:09]} 61. Bc3 {[%emt 0:00:00]} Rb3 {[%emt 0:00:31]} 62. Bf6 {[%emt 0:00:00]} Rb4 {[%emt 0:03:11]} 63. Bc3 {[%emt 0:00:00]} Rc4 {[%emt 0:00:06]} 64. Bf6 {[%emt 0:00:00]} Rc6 {[%emt 0:08:32]} 1/2-1/2